[Event "WYCC 2018 G14"]
[Site "Halkidiki"]
[Date "2018.10.20"]
[Round "1"]
[White "Rodriguez Redondo, Adhara"]
[Black "Woods, Charisse"]
[Result "1/2-1/2"]
[ECO "B32"]
[WhiteElo "1911"]
[BlackElo "1511"]
[Annotator "NA"]
[PlyCount "139"]
[EventDate "2018.10.20"]
[EventType "swiss"]
[EventCountry "GRE"]
[SourceTitle "playchess.com"]
[Source "ChessBase"]
[SourceQuality "1"]
[TimeControl "40/5400+30:1800+30"]

1. e4 {[%emt 0:00:00]} c5 {[%emt 0:00:00]} 2. Nf3 {[%emt 0:00:00]} Nc6 {[%emt 0:00:00]} 3. d4 {[%emt 0:00:00]} cxd4 {[%emt 0:00:00]} 4. Nxd4 {[%emt 0:00:00]} e5 {[%emt 0:00:00]} 5. Nb5 {[%emt 0:01:06]} d6 {[%emt 0:00:00]} 6. N1c3 {[%emt 0:01:15]} a6 {[%emt 0:00:00]} 7. Na3 {[%emt 0:00:20]} b5 {[%emt 0:00:30]} 8. Nd5 {[%emt 0:00:48]} Nf6 {[%emt 0:01:39]} 9. Bg5 {[%emt 0:00:38]} Be7 {[%emt 0:00:17]} 10. Bxf6 {[%emt 0:00:59]} Bxf6 {[%emt 0:00:08]} 11. g3 {[%emt 0:01:47]} O-O {[%emt 0:03:41]} 12. h4 {[%emt 0:04:02]} Be6 {[%emt 0:02:16]} 13. Bg2 {[%emt 0:03:19]} Rc8 {[%emt 0:05:25]} 14. c3 {[%emt 0:04:49]} Be7 {[%emt 0:02:20]} 15. Nc2 {[%emt 0:05:23]} Na5 {[%emt 0:24:32]} 16. O-O {[%emt 0:09:06]} f5 {[%emt 0:05:57]} 17. Bh3 {[%emt 0:06:32]} Nc4 {[%emt 0:02:50]} 18. Rb1 {[%emt 0:15:51]} Kh8 {[%emt 0:06:03]} 19. Nce3 {[%emt 0:16:54]} Nxe3 {[%emt 0:04:27]} 20. fxe3 {[%emt 0:04:50]} Bxd5 {[%emt 0:02:36]} 21. Qxd5 {[%emt 0:02:49]} Rc5 {[%emt 0:04:18]} 22. Qd3 {[%emt 0:04:13]} fxe4 {[%emt 0:03:52]} 23. Qxe4 {[%emt 0:01:16]} Rc4 {[%emt 0:03:38]} 24. Qd3 {[%emt 0:04:05]} Rf6 {[%emt 0:02:03]} 25. Rxf6 {[%emt 0:01:48]} Bxf6 {[%emt 0:00:17]} 26. Rd1 {[%emt 0:01:55]} Be7 {[%emt 0:01:22]} 27. Be6 {[%emt 0:03:32]} Rc5 {[%emt 0:01:14]} 28. Bd5 {[%emt 0:02:19]} Qd7 {[%emt 0:04:23]} 29. Qe4 {[%emt 0:01:14]} Qh3 {[%emt 0:05:43]} 30. Qf3 {[%emt 0:00:21]} Rc8 {[%emt 0:01:12]} 31. Rf1 {[%emt 0:01:00]} g6 {[%emt 0:01:45]} 32. Qg2 {[%emt 0:03:15]} Qd7 {[%emt 0:03:38]} 33. Rf7 {[%emt 0:00:28]} Qa7 {[%emt 0:03:07]} 34. Qf3 {[%emt 0:00:18]} Qc7 {[%emt 0:01:30]} 35. h5 {[%emt 0:00:33]} Rg8 {[%emt 0:03:29]} 36. hxg6 {[%emt 0:00:29]} Rxg6 {[%emt 0:00:42]} 37. Be4 {[%emt 0:00:41]} Rg7 {[%emt 0:01:39]} 38. Rf5 {[%emt 0:00:30]} Qd8 {[%emt 0:01:04]} 39. Bd5 {[%emt 0:00:00]} a5 {[%emt 0:00:00]} 40. Kg2 {[%emt 0:00:00]} b4 {[%emt 0:00:00]} 41. c4 {[%emt 0:04:03]} Qe8 {[%emt 0:05:32]} 42. Bf7 {[%emt 0:04:58]} Qd8 {[%emt 0:01:46]} 43. Bd5 {[%emt 0:01:40]} Qe8 {[%emt 0:00:18]} 44. b3 {[%emt 0:00:37]} Qd8 {[%emt 0:03:14]} 45. Be4 {[%emt 0:07:15]} Qe8 {[%emt 0:03:24]} 46. Kh2 {[%emt 0:02:01]} Rg5 {[%emt 0:04:38]} 47. Rf7 {[%emt 0:05:42]} Rg7 {[%emt 0:00:43]} 48. Rxg7 {[%emt 0:03:54]} Kxg7 {[%emt 0:00:15]} 49. Kg2 {[%emt 0:01:22]} h6 {[%emt 0:01:04]} 50. Qf5 {[%emt 0:01:16]} Bg5 {[%emt 0:00:36]} 51. Qh7+ {[%emt 0:00:54]} Kf6 {[%emt 0:00:37]} 52. Qc7 {[%emt 0:00:54]} Qe7 {[%emt 0:02:34]} 53. Qxa5 {[%emt 0:01:03]} Bxe3 {[%emt 0:00:09]} 54. Qxb4 {[%emt 0:00:37]} Qf8 {[%emt 0:00:29]} 55. Qe1 {[%emt 0:00:36]} Bd4 {[%emt 0:01:07]} 56. Qf1+ {[%emt 0:01:57]} Ke7 {[%emt 0:00:12]} 57. Qxf8+ {[%emt 0:00:40]} Kxf8 {[%emt 0:00:12]} 58. b4 {[%emt 0:00:21]} Ke7 {[%emt 0:00:07]} 59. Kf3 {[%emt 0:00:41]} Kd7 {[%emt 0:00:06]} 60. a4 {[%emt 0:00:28]} Kc7 {[%emt 0:00:09]} 61. Bc2 {[%emt 0:00:29]} Bc3 {[%emt 0:00:14]} 62. Ke4 {[%emt 0:00:31]} Bxb4 {[%emt 0:00:48]} 63. Kd5 {[%emt 0:00:16]} h5 {[%emt 0:00:20]} 64. Bd1 {[%emt 0:00:19]} Be1 {[%emt 0:00:11]} 65. Bxh5 {[%emt 0:00:18]} Bxg3 {[%emt 0:00:07]} 66. c5 {[%emt 0:00:27]} dxc5 {[%emt 0:00:42]} 67. Kxc5 {[%emt 0:00:05]} Be1 {[%emt 0:00:06]} 68. Kb5 {[%emt 0:00:10]} e4 {[%emt 0:00:11]} 69. a5 {[%emt 0:00:10]} Bxa5 {[%emt 0:00:05]} 70. Kxa5 {[%emt 0:00:02]} 1/2-1/2

[Event "WYCC 2018 G14"]
[Site "Halkidiki"]
[Date "2018.10.20"]
[Round "1"]
[White "Nguyen, Thien Ngan"]
[Black "Apostolakaki, Evangelia"]
[Result "1-0"]
[ECO "C54"]
[WhiteElo "1888"]
[BlackElo "1499"]
[Annotator "NA"]
[PlyCount "61"]
[EventDate "2018.10.20"]
[EventType "swiss"]
[EventCountry "GRE"]
[SourceTitle "playchess.com"]
[Source "ChessBase"]
[SourceQuality "1"]
[TimeControl "40/5400+30:1800+30"]

1. e4 {[%emt 0:00:00]} e5 {[%emt 0:00:00]} 2. Nf3 {[%emt 0:00:00]} Nc6 {[%emt 0:00:00]} 3. Bc4 {[%emt 0:00:00]} Bc5 {[%emt 0:00:00]} 4. c3 {[%emt 0:00:00]} Nf6 {[%emt 0:00:10]} 5. d3 {[%emt 0:00:01]} a6 {[%emt 0:00:15]} 6. a4 {[%emt 0:00:15]} d6 {[%emt 0:01:02]} 7. Bg5 {[%emt 0:00:36]} Ba7 {[%emt 0:01:47]} 8. O-O {[%emt 0:01:05]} h6 {[%emt 0:00:25]} 9. Bh4 {[%emt 0:00:27]} Be6 {[%emt 0:00:54]} 10. Bxe6 {[%emt 0:02:51]} fxe6 {[%emt 0:00:15]} 11. d4 {[%emt 0:02:54]} g5 {[%emt 0:13:44]} 12. Bg3 {[%emt 0:01:24]} g4 {[%emt 0:06:34]} 13. dxe5 {[%emt 0:03:40]} Nxe4 {[%emt 0:06:40]} 14. Nd4 {[%emt 0:02:29]} Bxd4 {[%emt 0:13:46]} 15. cxd4 {[%emt 0:01:30]} Nxg3 {[%emt 0:02:18]} 16. hxg3 {[%emt 0:00:48]} h5 {[%emt 0:01:30]} 17. Qd3 {[%emt 0:04:03]} dxe5 {[%emt 0:04:37]} 18. Qg6+ {[%emt 0:01:43]} Kd7 {[%emt 0:00:19]} 19. dxe5 {[%emt 0:00:34]} Qg8 {[%emt 0:02:20]} 20. Rd1+ {[%emt 0:02:21]} Kc8 {[%emt 0:00:15]} 21. Qf6 {[%emt 0:00:58]} Qe8 {[%emt 0:05:40]} 22. Nc3 {[%emt 0:04:20]} Rf8 {[%emt 0:00:13]} 23. Qh6 {[%emt 0:02:27]} Nxe5 {[%emt 0:05:06]} 24. Re1 {[%emt 0:01:49]} Rh8 {[%emt 0:00:22]} 25. Qg7 {[%emt 0:04:08]} Nf7 {[%emt 0:01:56]} 26. Nd5 {[%emt 0:01:25]} Kb8 {[%emt 0:11:37]} 27. Rac1 {[%emt 0:01:41]} c6 {[%emt 0:00:20]} 28. Nb6 {[%emt 0:01:43]} Ra7 {[%emt 0:00:09]} 29. Rcd1 {[%emt 0:01:09]} Rg8 {[%emt 0:01:41]} 30. Qf6 {[%emt 0:00:25]} Ng5 {[%emt 0:02:05]} 31. Qe5# {[%emt 0:00:28]} 1-0

[Event "WYCC 2018 G14"]
[Site "Halkidiki"]
[Date "2018.10.20"]
[Round "1"]
[White "Ehsani, Yassamin"]
[Black "Lobanova, Milana"]
[Result "1-0"]
[ECO "B24"]
[WhiteElo "1875"]
[BlackElo "1461"]
[Annotator "NA"]
[PlyCount "95"]
[EventDate "2018.10.20"]
[EventType "swiss"]
[EventCountry "GRE"]
[SourceTitle "playchess.com"]
[Source "ChessBase"]
[SourceQuality "1"]
[TimeControl "40/5400+30:1800+30"]

1. e4 {[%emt 0:00:00]} c5 {[%emt 0:02:53]} 2. Nc3 {[%emt 0:00:00]} Nc6 {[%emt 0:01:31]} 3. Bb5 {[%emt 0:00:01]} d6 {[%emt 0:00:35]} 4. Bxc6+ {[%emt 0:00:39]} bxc6 {[%emt 0:00:06]} 5. Nge2 {[%emt 0:00:29]} Nf6 {[%emt 0:01:53]} 6. O-O {[%emt 0:00:31]} e6 {[%emt 0:01:38]} 7. d3 {[%emt 0:05:44]} Be7 {[%emt 0:02:25]} 8. b3 {[%emt 0:09:00]} O-O {[%emt 0:03:28]} 9. f4 {[%emt 0:06:56]} Ne8 {[%emt 0:09:31]} 10. Be3 {[%emt 0:07:05]} d5 {[%emt 0:09:24]} 11. Na4 {[%emt 0:05:05]} d4 {[%emt 0:04:51]} 12. Bc1 {[%emt 0:02:11]} Nc7 {[%emt 0:09:20]} 13. Ba3 {[%emt 0:05:54]} Na6 {[%emt 0:00:55]} 14. Ng3 {[%emt 0:13:09]} Nb4 {[%emt 0:04:27]} 15. Qe2 {[%emt 0:08:51]} f6 {[%emt 0:07:38]} 16. Bb2 {[%emt 0:11:38]} e5 {[%emt 0:02:04]} 17. f5 {[%emt 0:02:47]} Na6 {[%emt 0:08:46]} 18. Nh1 {[%emt 0:02:18]} Nc7 {[%emt 0:03:55]} 19. Rf3 {[%emt 0:01:09]} Qe8 {[%emt 0:02:31]} 20. Rh3 {[%emt 0:03:00]} g5 {[%emt 0:05:59]} 21. Rh5 {[%emt 0:00:57]} Kg7 {[%emt 0:04:02]} 22. h4 {[%emt 0:00:58]} h6 {[%emt 0:00:23]} 23. Qg4 {[%emt 0:01:11]} Bd7 {[%emt 0:03:58]} 24. Rf1 {[%emt 0:03:45]} Kh7 {[%emt 0:01:13]} 25. hxg5 {[%emt 0:01:09]} fxg5 {[%emt 0:00:12]} 26. Qh3 {[%emt 0:01:26]} Rf6 {[%emt 0:04:39]} 27. Rxg5 {[%emt 0:02:13]} Qf7 {[%emt 0:01:39]} 28. Rg6 {[%emt 0:00:58]} Bf8 {[%emt 0:01:11]} 29. Nxc5 {[%emt 0:01:22]} Be8 {[%emt 0:01:16]} 30. Rxf6 {[%emt 0:00:25]} Qxf6 31. Ne6 {[%emt 0:00:39]} Nxe6 {[%emt 0:01:00]} 32. fxe6 {[%emt 0:00:12]} Qg7 {[%emt 0:00:02]} 33. Ng3 {[%emt 0:00:29]} Bg6 {[%emt 0:01:18]} 34. Nf5 {[%emt 0:00:29]} Bxf5 {[%emt 0:00:14]} 35. Qxf5+ {[%emt 0:00:13]} Kg8 {[%emt 0:00:04]} 36. Qf7+ {[%emt 0:00:22]} Qxf7 {[%emt 0:01:13]} 37. Rxf7 {[%emt 0:00:32]} Re8 {[%emt 0:00:25]} 38. Rxa7 {[%emt 0:00:16]} Rxe6 {[%emt 0:00:05]} 39. a4 {[%emt 0:00:32]} Bc5 {[%emt 0:00:17]} 40. Ra8+ {[%emt 0:00:00]} Kf7 {[%emt 0:00:00]} 41. Bc1 {[%emt 0:01:01]} Bb4 {[%emt 0:00:50]} 42. a5 {[%emt 0:00:24]} Bc5 {[%emt 0:02:35]} 43. Bd2 {[%emt 0:00:18]} h5 {[%emt 0:00:55]} 44. b4 {[%emt 0:00:23]} Bd6 {[%emt 0:00:26]} 45. a6 {[%emt 0:00:23]} Re7 {[%emt 0:00:16]} 46. a7 {[%emt 0:01:07]} Ke6 {[%emt 0:00:15]} 47. Bg5 {[%emt 0:00:21]} Rg7 {[%emt 0:01:40]} 48. Re8+ {[%emt 0:00:17]} 1-0

[Event "WYCC 2018 G14"]
[Site "Halkidiki"]
[Date "2018.10.20"]
[Round "1"]
[White "De Rycke, Tyani"]
[Black "Ning, Kaiyu"]
[Result "0-1"]
[ECO "C01"]
[WhiteElo "1758"]
[BlackElo "2217"]
[Annotator "NA"]
[PlyCount "78"]
[EventDate "2018.10.20"]
[EventType "swiss"]
[EventCountry "GRE"]
[SourceTitle "playchess.com"]
[Source "ChessBase"]
[SourceQuality "1"]
[TimeControl "40/5400+30:1800+30"]

1. e4 e6 2. d4 d5 3. exd5 exd5 4. Nf3 Bd6 5. Bd3 Nc6 6. c3 h6 {C01: French: Exchange Variation} (6... Bg4 7. O-O Nge7 8. Re1 Qd7 9. Nbd2 f6 10. b4 O-O 11. Nf1 Rae8 12. a4 Ng6 13. Ne3 Be6 14. g3 Nce7 15. Ra2 Nf5 16. Ng2 Bf7 17. Rae2 Rxe2 18. Rxe2 Re8 {½-½ (40) Leko,P (2731)-Morozevich,A (2724) Sochi 2014}) 7. O-O Qf6 8. Qe2+ $146 ({Predecessor:} 8. Qc2 Nge7 9. Nbd2 g5 10. Nb3 g4 11. Ne1 Bf5 12. f4 h5 13. Bxf5 Qxf5 14. Qxf5 Nxf5 {0-1 (45) Alcaide Luque,A (2179)-Gonzalez de la Torre,S (2459) Zornotza 2014}) 8... Nge7 9. Ne1 Bf5 10. Bxf5 Qxf5 11. Qd3 O-O-O 12. f4 (12. a4 $11) 12... h5 13. b3 f6 14. Ba3 Rhe8 15. Bxd6 Rxd6 16. a4 Re6 17. Nd2 Qxd3 18. Nxd3 Re3 19. Rf3 Nf5 20. Raf1 {[#]} Nh4 $1 21. Rg3 {[#]} Rxg3 $1 22. hxg3 Nf5 $17 ({Black should try} 22... Re3 $19 23. gxh4 Rxd3) 23. Kh2 Nd6 24. b4 Re2 25. Rf2 Re7 26. Rf1 Ne4 27. Nb1 g6 28. Nc5 Nxc5 29. dxc5 a5 30. b5 Nd8 31. Nd2 Re3 32. Rf3 Re2 33. Rd3 Nf7 34. Rxd5 Nh6 35. Nf3 Rc2 36. Kh3 Rc1 37. Nh2 Rh1 38. g4 hxg4+ 39. Kg3 Nf5+ 0-1

[Event "WYCC 2018 G14"]
[Site "Halkidiki"]
[Date "2018.10.20"]
[Round "1"]
[White "Dimitrijevic, Andjela"]
[Black "Divya Deshmukh"]
[Result "0-1"]
[ECO "B50"]
[WhiteElo "1744"]
[BlackElo "2180"]
[Annotator "ChessBase"]
[PlyCount "124"]
[EventDate "2018.10.20"]
[EventType "swiss"]
[EventCountry "GRE"]
[SourceTitle "playchess.com"]
[Source "ChessBase"]
[SourceQuality "1"]
[TimeControl "40/5400+30:1800+30"]

1. e4 {[%emt 0:00:00]} c5 {[%emt 0:00:00]} 2. Nf3 {[%emt 0:00:00]} d6 {[%emt 0:00:00]} 3. c3 {[%emt 0:00:27]} Nf6 {[%emt 0:00:25]} 4. h3 {[%emt 0:00:43]} Nc6 {[%emt 0:00:30]} 5. Bd3 {[%emt 0:00:44]} e5 {[%emt 0:00:36]} 6. Bc2 {[%emt 0:06:33]} Be7 {[%emt 0:01:54]} 7. d3 {[%emt 0:04:21]} O-O {[%emt 0:01:37]} 8. O-O {[%emt 0:02:22]} h6 {[%emt 0:02:02]} 9. a3 {[%emt 0:21:51]} a5 {[%emt 0:09:40]} 10. a4 {[%emt 0:03:26]} b6 {[%emt 0:01:07]} 11. Na3 {[%emt 0:05:36]} Ba6 {[%emt 0:00:56]} 12. Re1 {[%emt 0:07:12]} Re8 {[%emt 0:07:34]} 13. Bb3 {[%emt 0:03:17]} Qd7 {[%emt 0:18:13]} 14. Bc4 {[%emt 0:03:43]} Bd8 {[%emt 0:06:38]} 15. Qb3 {[%emt 0:04:24]} Bc7 16. Bd2 {[%emt 0:10:41]} Bb7 {[%emt 0:14:58]} 17. Nb5 {[%emt 0:12:50]} Rac8 {[%emt 0:03:32]} 18. Nh4 {[%emt 0:03:14]} Nd8 {[%emt 0:02:10]} 19. Rad1 {[%emt 0:04:24]} Bb8 {[%emt 0:01:28]} 20. Bc1 {[%emt 0:00:51]} Ne6 {[%emt 0:02:57]} 21. Nf3 {[%emt 0:02:26]} Nf8 {[%emt 0:01:35]} 22. Bd5 {[%emt 0:00:37]} Ng6 {[%emt 0:01:04]} 23. Bxb7 {[%emt 0:00:43]} Qxb7 {[%emt 0:00:09]} 24. c4 {[%emt 0:00:26]} Nh5 {[%emt 0:02:50]} 25. Nc3 {[%emt 0:00:32]} Nhf4 {[%emt 0:01:30]} 26. Nd5 {[%emt 0:00:35]} Nxd5 {[%emt 0:00:27]} 27. exd5 {[%emt 0:00:24]} f5 {[%emt 0:04:43]} 28. Qc2 {[%emt 0:00:29]} Qf7 {[%emt 0:01:28]} 29. Nd2 {[%emt 0:00:43]} Nh4 {[%emt 0:00:40]} 30. Kh2 {[%emt 0:00:35]} Bc7 {[%emt 0:02:37]} 31. Nb1 {[%emt 0:00:40]} Qg6 {[%emt 0:03:00]} 32. Rg1 {[%emt 0:00:13]} Bd8 {[%emt 0:01:22]} 33. Nc3 {[%emt 0:00:16]} Bf6 {[%emt 0:00:31]} 34. Rde1 {[%emt 0:01:02]} Re7 {[%emt 0:03:05]} 35. b3 {[%emt 0:00:30]} Rce8 {[%emt 0:00:41]} 36. Kh1 {[%emt 0:00:33]} Qh5 {[%emt 0:02:14]} 37. Qd1 {[%emt 0:00:26]} Qf7 {[%emt 0:00:44]} 38. g3 {[%emt 0:00:22]} Ng6 {[%emt 0:00:04]} 39. Qf3 {[%emt 0:00:25]} e4 {[%emt 0:01:49]} 40. dxe4 {[%emt 0:00:00]} Bxc3 {[%emt 0:00:00]} 41. Qxc3 {[%emt 0:04:44]} fxe4 {[%emt 0:03:07]} 42. Qc2 {[%emt 0:16:51]} Qf5 {[%emt 0:04:43]} 43. Kg2 {[%emt 0:02:37]} Qf3+ {[%emt 0:09:44]} 44. Kh2 {[%emt 0:00:46]} Qf7 {[%emt 0:03:06]} 45. Bb2 {[%emt 0:01:14]} e3 {[%emt 0:05:05]} 46. f4 {[%emt 0:04:57]} h5 {[%emt 0:02:44]} 47. h4 {[%emt 0:02:26]} Re4 {[%emt 0:03:49]} 48. Rg2 {[%emt 0:01:02]} Qd7 {[%emt 0:02:09]} 49. Bc1 {[%emt 0:00:29]} Qg4 {[%emt 0:01:23]} 50. Qe2 {[%emt 0:00:13]} Qf5 {[%emt 0:00:01]} 51. Qc2 {[%emt 0:00:48]} Qf6 {[%emt 0:01:12]} 52. Bb2 {[%emt 0:00:25]} Qe7 {[%emt 0:00:06]} 53. Rge2 {[%emt 0:00:40]} Nxf4 {[%emt 0:01:31]} 54. gxf4 {[%emt 0:00:31]} Qxh4+ {[%emt 0:00:02]} 55. Kg1 {[%emt 0:00:31]} Rxf4 {[%emt 0:00:24]} 56. Rxe3 Rg4+ {[%emt 0:00:20]} 57. Kf1 {[%emt 0:00:40]} Qh1+ {[%emt 0:00:38]} 58. Ke2 {[%emt 0:00:39]} Rxe3+ {[%emt 0:00:10]} 59. Kxe3 {[%emt 0:00:42]} Qxe1+ {[%emt 0:00:04]} 60. Qe2 Re4+ {[%emt 0:00:05]} 61. Kxe4 {[%emt 0:01:03]} Qxe2+ {[%emt 0:00:02]} 62. Kf4 {[%emt 0:00:23]} Qxb2 {[%emt 0:00:04]} 0-1

[Event "WYCC 2018 G14"]
[Site "Halkidiki"]
[Date "2018.10.20"]
[Round "1"]
[White "Zaritovskaja, Margarita"]
[Black "Allahverdiyeva, Ayan"]
[Result "0-1"]
[ECO "C15"]
[WhiteElo "1731"]
[BlackElo "2116"]
[Annotator "NA"]
[PlyCount "66"]
[EventDate "2018.10.20"]
[EventType "swiss"]
[EventCountry "GRE"]
[SourceTitle "playchess.com"]
[Source "ChessBase"]
[SourceQuality "1"]
[TimeControl "40/5400+30:1800+30"]

1. e4 {[%emt 0:00:00]} e6 {[%emt 0:00:39]} 2. d4 {[%emt 0:00:00]} d5 {[%emt 0:00:04]} 3. Nc3 {[%emt 0:00:00]} Bb4 {[%emt 0:00:05]} 4. Nge2 {[%emt 0:00:25]} Nc6 {[%emt 0:00:37]} 5. a3 {[%emt 0:01:25]} Ba5 {[%emt 0:00:53]} 6. exd5 {[%emt 0:06:25]} exd5 {[%emt 0:00:51]} 7. Ng3 {[%emt 0:02:18]} Nf6 {[%emt 0:19:44]} 8. Be2 {[%emt 0:04:21]} Be6 {[%emt 0:04:53]} 9. O-O {[%emt 0:02:46]} O-O {[%emt 0:00:11]} 10. Bg5 {[%emt 0:07:40]} h6 {[%emt 0:00:44]} 11. Be3 {[%emt 0:01:33]} Ne7 {[%emt 0:01:51]} 12. b4 {[%emt 0:08:07]} Bb6 {[%emt 0:00:38]} 13. Bd3 {[%emt 0:07:19]} Qd7 {[%emt 0:05:14]} 14. Nce2 {[%emt 0:09:37]} Nf5 {[%emt 0:02:25]} 15. Nxf5 {[%emt 0:02:56]} Bxf5 {[%emt 0:02:28]} 16. Ng3 {[%emt 0:00:35]} Bxd3 {[%emt 0:04:36]} 17. Qxd3 {[%emt 0:00:16]} Rfe8 {[%emt 0:11:40]} 18. f3 {[%emt 0:08:25]} a6 {[%emt 0:03:17]} 19. Kh1 {[%emt 0:04:46]} Re6 {[%emt 0:01:44]} 20. Rae1 {[%emt 0:03:33]} Qb5 {[%emt 0:03:02]} 21. Qd2 {[%emt 0:04:54]} Rae8 {[%emt 0:03:59]} 22. Nf5 {[%emt 0:04:39]} Kh7 {[%emt 0:08:41]} 23. Qf2 {[%emt 0:11:51]} g6 {[%emt 0:03:42]} 24. Qh4 {[%emt 0:04:24]} gxf5 {[%emt 0:00:13]} 25. Bxh6 {[%emt 0:00:50]} Rxe1 {[%emt 0:03:00]} 26. Bd2+ {[%emt 0:01:18]} Kg8 {[%emt 0:00:30]} 27. Qg5+ {[%emt 0:00:05]} Kf8 {[%emt 0:00:08]} 28. Qh6+ {[%emt 0:00:26]} Ke7 {[%emt 0:00:20]} 29. Rxe1+ {[%emt 0:00:32]} Kd7 {[%emt 0:00:10]} 30. Rd1 {[%emt 0:02:00]} Qe2 {[%emt 0:02:46]} 31. Rb1 {[%emt 0:00:39]} Rg8 {[%emt 0:01:33]} 32. Bg5 {[%emt 0:00:57]} Bxd4 {[%emt 0:00:15]} 33. Qh4 {[%emt 0:00:42]} Be3 0-1

[Event "WYCC 2018 G14"]
[Site "Halkidiki"]
[Date "2018.10.20"]
[Round "1"]
[White "Maciulaityte, Barbora"]
[Black "Garifullina, Leya"]
[Result "0-1"]
[ECO "C77"]
[WhiteElo "1715"]
[BlackElo "2106"]
[Annotator "NA"]
[PlyCount "106"]
[EventDate "2018.10.20"]
[EventType "swiss"]
[EventCountry "GRE"]
[SourceTitle "playchess.com"]
[Source "ChessBase"]
[SourceQuality "1"]
[TimeControl "40/5400+30:1800+30"]

1. e4 {[%emt 0:00:00]} e5 {[%emt 0:00:00]} 2. Nf3 {[%emt 0:00:00]} Nc6 {[%emt 0:00:00]} 3. Bb5 {[%emt 0:00:00]} a6 {[%emt 0:00:04]} 4. Ba4 {[%emt 0:00:00]} Nf6 {[%emt 0:00:07]} 5. d3 {[%emt 0:00:09]} d6 {[%emt 0:00:08]} 6. c3 {[%emt 0:00:05]} g6 {[%emt 0:00:05]} 7. O-O {[%emt 0:00:47]} Bg7 {[%emt 0:00:11]} 8. h3 {[%emt 0:01:13]} O-O {[%emt 0:00:10]} 9. Re1 {[%emt 0:00:53]} b5 {[%emt 0:00:30] C77: Ruy Lopez: 3...a6 4 Ba4 Nf6, unusual lines} (9... Re8 10. Be3 d5 11. Nbd2 h6 12. exd5 Nxd5 13. Bxc6 bxc6 14. Qa4 Bf5 15. Ne4 Rb8 16. Rab1 Nb6 17. Qc2 {½-½ (40) Zhao,J (2599)-Wang,H (2713) Hanoi 2018}) 10. Bc2 {[%emt 0:00:42]} Bb7 {[%emt 0:00:57]} 11. Nbd2 {[%emt 0:00:37]} Re8 {[%emt 0:01:29]} 12. Nf1 {[%emt 0:00:24]} Nb8 {[%emt 0:01:00]} 13. Ng3 {[%emt 0:01:42]} Nbd7 {[%emt 0:00:10]} 14. a4 {[%emt 0:03:58]} h6 {[%emt 0:04:48]} 15. d4 {[%emt 0:25:07]} Qe7 $146 {[%emt 0:05:15]} ({Predecessor:} 15... c5 16. d5 c4 17. Be3 {½-½ (44) Abrahamyan,T (2324)-Andersen,M (2479) Reykjavik 2016}) 16. Bd3 {[%emt 0:02:19]} c6 {[%emt 0:00:16]} 17. b3 {[%emt 0:01:53]} Nf8 {[%emt 0:04:24]} 18. Ba3 {[%emt 0:03:00]} Qc7 {[%emt 0:01:59]} 19. Rb1 {[%emt 0:03:46]} N6d7 {[%emt 0:03:03]} 20. Bb2 {[%emt 0:04:52]} Ne6 {[%emt 0:02:30]} 21. axb5 {[%emt 0:05:06]} axb5 {[%emt 0:00:30]} 22. d5 {[%emt 0:02:06]} (22. Ne2 $11) 22... Nf4 {[%emt 0:02:54]} 23. dxc6 {[%emt 0:02:28]} Bxc6 {[%emt 0:00:24]} 24. Bf1 {[%emt 0:01:18]} Nc5 {[%emt 0:01:44]} 25. b4 {[%emt 0:07:12]} Na4 {[%emt 0:03:32]} 26. Qb3 {[%emt 0:02:10]} d5 $17 {[%emt 0:01:56]} 27. Rbd1 {[%emt 0:00:41]} Qb7 {[%emt 0:00:52]} 28. Nd2 {[%emt 0:03:31]} Rad8 {[%emt 0:01:24]} 29. Ba1 {[%emt 0:02:33]} h5 {[%emt 0:01:11]} 30. h4 {[%emt 0:01:33]} Nb6 {[%emt 0:04:11]} 31. Qc2 {[%emt 0:08:59]} Nc4 {[%emt 0:06:09]} 32. Nxc4 {[%emt 0:00:37]} bxc4 {[%emt 0:01:12]} 33. Bb2 {[%emt 0:00:57]} Qe7 {[%emt 0:01:50]} 34. Bc1 {[%emt 0:03:27]} Qxh4 {[%emt 0:01:03]} 35. exd5 {[%emt 0:01:42]} Bxd5 {[%emt 0:00:19]} 36. Bxf4 {[%emt 0:01:24]} Qxf4 {[%emt 0:01:27]} 37. Qc1 {[%emt 0:04:05]} Qf6 {[%emt 0:03:24]} 38. Ne4 {[%emt 0:01:40]} Qc6 {[%emt 0:00:13]} 39. Nc5 {[%emt 0:01:36]} Kh7 {[%emt 0:03:46]} 40. Qg5 {[%emt 0:00:00]} Bf6 {[%emt 0:00:00]} 41. Qg3 {[%emt 0:03:11]} Kg7 {[%emt 0:04:06]} 42. Ra1 {[%emt 0:01:46]} Ra8 {[%emt 0:01:26]} 43. Red1 {[%emt 0:00:57]} e4 {[%emt 0:07:17]} 44. Qe3 {[%emt 0:01:41]} Rxa1 {[%emt 0:04:01]} 45. Rxa1 {[%emt 0:00:07]} Qc8 {[%emt 0:04:20]} 46. Ra7 {[%emt 0:02:59]} Qf5 {[%emt 0:02:06]} 47. Na6 {[%emt 0:10:12]} Rd8 {[%emt 0:14:56]} 48. Nc7 {[%emt 0:02:09]} Bc6 {[%emt 0:02:22]} 49. Ra5 {[%emt 0:03:45]} Qc8 {[%emt 0:02:57]} 50. Na6 {[%emt 0:00:50]} Rd1 {[%emt 0:01:05]} 51. Nc5 {[%emt 0:01:33]} Qg4 {[%emt 0:00:55]} 52. Ra6 {[%emt 0:00:46]} Bg5 {[%emt 0:00:32]} 53. Qh3 {[%emt 0:04:34]} Rxf1+ {[%emt 0:00:59]} 0-1